bitfinex-derivatives/quotes_ETHF0:USTF0_20250704
["timestamp","ask_amount","ask_price","bid_price","bid_amount"]
[1751645111094,0.80287,2490.2,2490.1,1.3939]
[1751645111300,0.80283,2490.4,2490.3,0.80282]
[1751645111490,4.0106,2490.5,2490.4,0.80281]
[1751645111686,0.8028,2490.5,2490.4,0.8028]
[1751645111892,0.80282,2490.4,2490.3,0.80283]
[1751645112087,2.00704,2490.4,2489.7,3.9216]
[1751645112292,0.80292,2490.1,2490.0,0.80291]
[1751645112688,0.80295,2490.0,2489.9,0.80294]
[1751645113095,3.2078,2490.2,2489.9,2.00742]
[1751645113294,3.2078,2490.2,2489.6,2.00765]
[1751645113494,0.80296,2490.0,2489.9,0.80295]
[1751645113893,4.01069,2490.2,2490.1,0.8029]
[1751645114095,3.2078,2490.2,2490.1,0.8029]
[1751645114489,4.01067,2490.2,2490.1,0.8029]
[1751645114897,3.2078,2490.2,2490.1,0.8029]
[1751645115199,3.2078,2490.2,2489.9,0.80294]
[1751645115401,0.80296,2490.0,2489.9,2.10804]
[1751645115596,0.80298,2489.9,2489.6,2.00764]
[1751645115792,0.80296,2490.0,2489.9,0.80294]
[1751645116094,0.80335,2488.7,2487.8,3.2078]
[1751645116296,0.80358,2488.0,2487.9,9.5266481]
[1751645116600,3.2078,2488.1,2487.7,5.2805367]
[1751645116898,3.2078,2488.4,2487.8,1.3111]
[1751645117100,41.436,2488.2,2488.1,0.80355]
[1751645117496,3.2078,2488.4,2487.8,1.3111]
[1751645117696,41.432,2488.4,2487.8,4.5189]
[1751645118000,0.80351,2488.2,2488.0,0.80356]
[1751645118400,0.8035,2488.3,2488.1,0.80355]
[1751645118597,42.2135,2488.3,2487.8,4.5189]
[1751645118797,42.21349,2488.3,2488.0,0.80356]
[1751645119004,41.375,2488.2,2488.0,0.80356]
[1751645119204,3.2078,2488.1,2487.4,3.8564]
[1751645119499,0.80359,2488.0,2487.4,3.8564]
[1751645119705,3.2078,2488.1,2487.6,2.00928]
[1751645119904,3.2078,2488.1,2488.0,0.80358]
[1751645120300,0.80356,2488.1,2487.9,0.8036]
[1751645120504,4.01137,2488.1,2487.9,0.8036]
[1751645120702,0.8035,2488.3,2488.1,0.80352]
[1751645120904,0.8035,2488.3,2487.5,1.3672]
[1751645120905,3.2078,2488.4,2488.3,0.80348]
[1751645121096,54.262,2488.4,2488.3,0.80348]
[1751645121302,57.4698,2488.4,2488.3,0.80348]
[1751645121704,58.27325,2488.4,2488.3,0.80348]
[1751645122008,57.4698,2488.4,2488.3,0.80348]
[1751645122400,44.0078,2488.7,2488.6,0.80339]
[1751645122603,3.2078,2488.7,2488.6,0.80339]
[1751645122804,3.2078,2489.0,2488.9,0.80329]
[1751645123098,45.63163635,2489.0,2488.5,0.80339]
[1751645123304,0.80344,2488.5,2488.0,0.6772]
[1751645123605,41.327,2488.4,2488.3,0.80348]
[1751645124007,3.2078,2488.8,2488.5,0.80342]
[1751645124207,42.10637,2488.7,2488.1,3.44294]
[1751645124406,0.80339,2488.6,2488.5,0.8034]
[1751645124608,3.2078,2488.8,2488.3,2.00871]
[1751645124804,4.01108,2489.0,2488.9,0.80329]
[1751645125105,57.3748,2489.0,2488.6,0.80336]
[1751645125412,57.3748,2489.0,2488.5,0.8034]
[1751645125413,0.80339,2488.6,2488.5,0.8034]
[1751645125607,3.2078,2488.6,2488.5,0.8034]
[1751645125805,4.01119,2488.6,2488.5,0.8034]
[1751645126001,44.4778,2488.6,2488.5,0.8034]
[1751645126408,44.4778,2488.6,2488.0,5.89392]
[1751645126609,45.2812,2488.6,2488.5,0.80342]
[1751645126910,12.877,2488.9,2488.8,0.80332]
[1751645126911,4.01111,2488.9,2488.8,0.80332]
[1751645127112,0.80333,2488.8,2488.7,0.80333]
[1751645127309,16.8881,2488.9,2488.8,0.80332]
[1751645127509,58.0931,2488.9,2488.8,0.80332]
[1751645127703,3.2078,2488.9,2488.8,0.80332]
[1751645127911,16.0848,2488.9,2488.8,0.80332]
[1751645128100,57.2658,2488.9,2488.8,0.80332]
[1751645128305,58.06909,2488.9,2488.8,0.80332]
[1751645129013,57.2658,2488.9,2488.8,0.80332]
[1751645129214,54.048,2488.9,2488.8,0.80332]
[1751645129918,4.01108,2489.0,2488.9,0.80329]
[1751645130119,0.80332,2488.9,2488.8,0.80331]
[1751645130611,3.2078,2489.0,2488.4,0.80342]
[1751645130919,0.80328,2489.0,2488.9,0.80326]
[1751645131115,41.086,2489.0,2488.6,2.00846]
[1751645131416,41.086,2489.0,2488.8,0.80329]
[1751645131417,41.086,2488.9,2488.8,0.80329]
[1751645131913,40.8,2489.2,2488.7,1.3079]
[1751645132113,0.80323,2489.1,2489.0,0.80322]
[1751645132314,12.768,2489.2,2488.7,3.31627]
[1751645132621,41.85424,2489.1,2489.0,0.80326]
[1751645133414,0.80329,2488.9,2488.8,1.3079]
[1751645133708,0.80335,2488.8,2488.5,2.00854]
[1751645133913,0.80335,2488.8,2488.7,0.80332]
[1751645134314,0.80335,2488.7,2488.6,2.23266]
[1751645134721,45.07015,2488.7,2488.6,1.4293]
[1751645134920,0.80339,2488.6,2488.5,0.80339]
[1751645135121,0.80339,2488.6,2488.5,2.23269]
[1751645135815,45.07017,2488.7,2488.6,0.80339]
[1751645136119,0.8033,2488.9,2488.8,0.80332]
[1751645136310,0.80329,2489.0,2488.9,0.80326]
[1751645136510,0.80332,2488.9,2488.8,0.8033]
[1751645136715,0.80332,2488.8,2488.7,1.4293]
[1751645136916,0.80335,2488.7,2488.6,0.80336]
[1751645137118,0.80341,2488.6,2488.5,0.80338]
[1751645137318,41.76541,2488.6,2488.5,0.80338]
[1751645137518,4.01115,2488.8,2488.7,0.80335]
[1751645137720,44.98315,2488.8,2488.7,0.80335]
[1751645137918,44.98312,2488.8,2488.7,0.80335]
[1751645138118,0.80339,2488.7,2488.6,0.80336]
[1751645138421,0.80339,2488.6,2488.5,0.80341]
[1751645138615,44.1798,2488.8,2488.4,0.80344]
[1751645138616,0.80345,2488.5,2488.4,0.80344]
[1751645138812,0.80348,2488.4,2488.3,0.80346]
[1751645139015,0.80348,2488.4,2488.2,1.3078]
[1751645139016,0.80348,2488.3,2488.2,2.11129]
[1751645139226,0.80355,2488.1,2488.0,0.6772]
[1751645139521,41.73847,2488.4,2488.3,0.80348]
[1751645139719,42.94365,2488.4,2488.0,1.3078]
[1751645139920,0.80355,2488.1,2488.0,2.11135]
[1751645140317,2.00896,2488.0,2487.5,3.2078]
[1751645140521,0.80367,2487.8,2487.7,0.80366]
[1751645140915,4.01136,2488.1,2488.0,0.80358]
[1751645141115,3.2078,2488.1,2488.0,0.80358]
[1751645141319,44.91735,2488.1,2488.0,0.80358]
[1751645142024,44.1138,2488.1,2487.7,0.669]
[1751645142321,0.80364,2487.9,2487.8,0.80362]
[1751645142620,0.80367,2487.8,2487.7,0.80365]
[1751645142822,0.80371,2487.6,2487.5,4.01152]
[1751645143023,0.8038,2487.4,2487.3,0.80379]
[1751645143327,0.80381,2487.3,2487.2,4.01161]
[1751645143622,0.80378,2487.4,2487.3,0.80378]
[1751645143823,0.80381,2487.3,2487.2,0.80382]
[1751645144020,0.80379,2487.4,2487.3,0.80379]
[1751645144418,0.80379,2487.4,2487.0,1.3501]
[1751645144419,3.2078,2487.6,2487.4,0.80377]
[1751645144620,3.2078,2487.6,2487.5,0.80374]
[1751645144819,13.57275,2487.5,2487.1,2.00968]
[1751645145025,12.769,2487.5,2487.4,0.80377]
[1751645145421,3.2078,2487.6,2486.9,3.2078]
[1751645145728,53.661,2487.5,2487.2,1.3501]
[1751645145930,40.883,2487.5,2487.2,1.3501]
[1751645146124,3.2078,2487.6,2486.9,5.21762]
[1751645146328,3.2078,2487.6,2487.5,0.80374]
[1751645147224,44.0648,2487.9,2487.8,0.80364]
[1751645147824,44.0598,2487.9,2487.8,0.80364]
[1751645148031,44.86341,2487.9,2487.8,0.80364]
[1751645148233,44.0598,2487.9,2487.2,3.2078]
[1751645148428,3.2078,2487.6,2486.9,2.00985]
[1751645148628,0.80377,2487.4,2487.3,0.80378]
[1751645148822,40.8,2487.4,2487.1,2.00968]
[1751645149133,40.8,2487.4,2487.3,0.80381]
[1751645149330,40.909,2487.5,2487.4,0.80377]
[1751645149528,41.71275,2487.5,2487.4,0.80377]
[1751645149730,40.909,2487.5,2487.4,0.80377]
[1751645149919,41.60373,2487.6,2487.5,0.80374]
[1751645150125,0.80373,2487.6,2487.5,0.80374]
[1751645150530,0.8037,2487.7,2487.6,0.80368]
[1751645150936,5.0,2487.7,2487.3,1.3324]
[1751645151135,0.80377,2487.5,2487.4,0.80375]
[1751645151334,0.80377,2487.4,2487.3,2.13618]
[1751645151629,41.65777,2487.4,2487.1,3.2078]
[1751645151837,0.80383,2487.3,2487.2,0.80381]
[1751645153031,53.627,2487.4,2487.1,0.80384]
[1751645153237,13.57677,2487.5,2487.4,0.80375]
[1751645153426,4.01153,2487.6,2487.5,0.80374]
[1751645153630,44.82353,2487.6,2487.5,0.80374]
[1751645153834,44.0078,2487.9,2487.7,0.80365]
[1751645154035,41.62866,2487.8,2487.7,0.80365]
[1751645154236,41.62866,2487.8,2486.8,0.80395]
[1751645154237,0.80395,2486.9,2486.8,0.80395]
[1751645154434,0.80396,2486.9,2486.5,3.2078]
[1751645154632,3.2078,2487.0,2486.9,0.8039]
[1751645154831,0.00605522,2486.8,2486.6,1.3041]
[1751645155031,0.81005522,2486.8,2486.7,0.804]
[1751645155330,0.804,2486.7,2486.6,2.10811]
[1751645155638,0.00605522,2486.8,2486.7,0.804]
[1751645155639,0.80399,2486.8,2486.7,0.804]
[1751645155836,0.81013608,2486.7,2486.6,2.10811]
[1751645156136,0.80403,2486.6,2486.5,3.2078]
[1751645156438,3.2078,2486.6,2486.1,2.0889]
[1751645156638,0.80408,2486.5,2486.2,1.4257]
[1751645156835,0.80408,2486.5,2486.3,0.8041]
[1751645157038,0.80404,2486.6,2486.5,0.80405]
[1751645157242,3.2078,2486.6,2486.2,1.4257]
[1751645157433,3.2078,2486.3,2485.8,0.1923798]
[1751645157637,44.2478,2486.3,2486.2,0.80416]
[1751645157835,44.2478,2486.3,2485.9,2.01065]
[1751645157836,85.0478,2486.3,2486.1,0.80417]
[1751645158141,44.01458307,2486.3,2486.2,0.80416]
[1751645158644,3.21458307,2486.3,2486.2,0.80416]
[1751645159438,0.00678307,2486.3,2486.2,0.80416]
[1751645160141,3.2078,2487.0,2486.9,0.80394]
[1751645160441,2.00972,2487.1,2486.6,0.80401]
[1751645160738,0.80406,2486.5,2486.4,3.2078]
[1751645160939,44.0078,2487.0,2486.0,3.2078]
[1751645160940,43.01514,2486.6,2486.0,3.2078]
[1751645161140,41.019,2486.6,2486.0,4.5427]
[1751645161341,0.80419,2486.1,2486.0,4.5427]
[1751645161643,0.80418,2486.2,2486.0,4.5427]
[1751645161843,0.80419,2486.2,2486.1,0.80417]
[1751645162043,0.80415,2486.3,2486.2,0.80415]
[1751645162239,0.80426,2485.9,2485.8,0.1923798]
[1751645162644,3.2078,2486.1,2485.8,0.1923798]
[1751645163048,0.80426,2485.9,2485.8,0.1923798]
[1751645163649,3.2078,2486.1,2485.8,0.1923798]
[1751645163849,2.72659,2486.5,2485.8,0.1923798]
[1751645163850,12.741,2486.2,2485.8,0.1923798]
[1751645164041,13.54518,2486.2,2486.0,0.80421]
[1751645164340,3.2078,2486.5,2485.9,3.34552]
[1751645164538,41.87311,2486.4,2485.9,3.34552]
[1751645164745,41.069,2486.4,2485.9,3.34552]
[1751645164942,3.2078,2486.5,2485.9,3.34552]
[1751645165140,3.2078,2486.5,2486.4,0.8041]
[1751645165141,44.2678,2486.5,2486.4,0.8041]
[1751645165343,44.2678,2486.5,2486.0,0.7013]
[1751645165547,0.80416,2486.3,2486.1,1.3447]
[1751645165745,44.2678,2486.5,2485.8,0.8909798]
[1751645165943,0.80426,2485.9,2485.8,3.0399498]
[1751645166150,41.85126,2485.9,2485.8,0.1923798]
[1751645166347,41.85126,2485.9,2485.8,0.9966698]
[1751645166753,3.2078,2486.2,2485.8,0.9966698]
[1751645167050,0.80426,2485.9,2485.8,0.1923798]
[1751645167249,0.80426,2485.9,2485.8,0.9966698]
[1751645167445,0.80426,2485.9,2485.8,0.1923798]
[1751645167947,4.01206,2485.9,2485.8,0.1923798]
[1751645168647,4.01206,2485.9,2484.8,1.3522]
[1751645168648,4.02159,2485.8,2484.3,3.2078]
[1751645168849,3.2078,2484.7,2484.3,3.2078]
[1751645169055,96.1207,2484.6,2484.0,3.2078]
[1751645169344,0.80513,2483.2,2482.8,7.9388734]
[1751645169545,4.01293,2483.2,2482.2,5.22142]
[1751645169752,44.7958,2483.2,2482.4,3.2078]
[1751645170046,3.2078,2482.8,2482.2,3.2078]
[1751645170247,3.2078,2482.8,2482.3,1.3701]
[1751645170449,3.2078,2482.8,2482.4,0.80538]
[1751645170450,0.00607879,2482.7,2482.4,0.80538]
[1751645170650,3.2078,2482.6,2482.3,1.3701]
[1751645171051,3.2078,2482.6,2482.5,0.80536]
[1751645171245,41.636,2482.8,2482.3,1.3701]
[1751645171446,3.2078,2483.0,2482.3,1.3701]
[1751645171651,3.2078,2483.3,2482.3,1.3701]
[1751645171850,2.01203,2484.2,2482.3,1.3701]
[1751645171851,3.2078,2484.5,2483.2,3.2078]
[1751645172052,3.2078,2484.5,2484.4,0.80474]
[1751645172254,12.998,2484.9,2483.9,3.2078]
[1751645172448,3.2078,2485.0,2483.9,3.2078]
[1751645172648,0.6881,2485.8,2483.9,3.2078]
[1751645172649,3.2078,2486.1,2484.9,3.2078]
[1751645172853,3.2078,2485.8,2485.5,0.80437]
[1751645173052,3.2078,2485.8,2485.7,0.80432]
[1751645173250,3.2078,2486.1,2486.0,0.80423]
[1751645173450,1.10184342,2486.1,2485.8,3.2078]
[1751645173650,3.2078,2486.5,2485.9,3.2078]
[1751645173853,4.2286286,2486.4,2486.3,0.8041]
[1751645174254,3.2078,2486.5,2486.4,0.8041]
[1751645174457,1.3687,2486.7,2486.6,0.80403]
[1751645174850,3.2078,2487.3,2486.3,3.2078]
[1751645175052,3.2078,2487.3,2487.0,0.80389]
[1751645175362,1.3687,2487.2,2486.9,0.80392]
[1751645175656,0.80397,2486.8,2486.3,3.2078]
[1751645175852,1.3687,2486.7,2486.3,3.2078]
[1751645176257,3.2078,2486.4,2485.6,4.01214]
[1751645176553,1.3203,2486.3,2485.6,3.2078]
[1751645176756,3.2078,2485.9,2485.6,0.80434]
[1751645176952,3.2078,2486.0,2485.3,3.2078]
[1751645177152,4.5281,2486.0,2485.3,3.2078]
[1751645177358,3.2078,2485.8,2485.3,3.2078]
[1751645177552,2.12464,2485.7,2485.3,4.01223]
[1751645177760,1.3203,2485.7,2485.3,3.2078]
[1751645178155,0.80439,2485.5,2485.3,3.2078]
[1751645178359,0.80447,2485.3,2485.0,4.01234]
[1751645178564,0.80447,2485.3,2485.0,3.2078]
[1751645178857,0.8045,2485.2,2485.0,3.2078]
[1751645179559,40.8,2485.8,2485.0,3.2078]
[1751645179748,0.80444,2485.4,2485.0,3.2078]
[1751645179954,0.80441,2485.5,2485.0,3.2078]
[1751645180154,46.7775,2485.7,2485.0,3.2078]
[1751645180451,4.5695,2485.7,2485.1,1.2979]
[1751645180654,4.5695,2485.7,2485.0,4.01233]
[1751645180854,0.80446,2485.3,2485.0,4.01233]
[1751645181058,2.01089,2485.6,2485.0,3.2078]
[1751645181260,1.3617,2485.5,2485.0,3.2078]
[1751645181461,0.80452,2485.1,2485.0,3.2078]
[1751645181761,0.80449,2485.2,2485.0,4.01235]
[1751645182157,1.3617,2485.5,2485.0,3.2078]
[1751645182453,1.3617,2485.5,2484.5,2.68193]
[1751645182454,0.80452,2485.1,2484.7,3.2078]
[1751645182661,0.80461,2484.8,2484.7,3.2078]
[1751645183060,0.80459,2484.9,2484.7,3.2078]
[1751645183260,1.403,2485.2,2484.9,0.80456]
[1751645183462,0.80453,2485.1,2484.7,3.2078]
[1751645183661,1.403,2485.2,2484.7,3.2078]
[1751645183959,4.01227,2485.3,2485.1,0.80449]
[1751645184163,0.80444,2485.4,2485.3,0.80445]
[1751645184364,0.80445,2485.3,2484.8,3.3367]
[1751645184564,0.80445,2485.3,2485.1,0.8045]
[1751645184760,0.80444,2485.4,2484.8,1.3252]
[1751645184964,0.80444,2485.4,2484.9,2.01146]
[1751645185159,3.2078,2485.1,2484.5,0.6702]
[1751645185367,1.403,2485.3,2484.7,5.21942]
[1751645185659,13.002,2485.6,2485.2,3.2078]
[1751645185858,2.01043,2486.2,2485.7,0.80432]
[1751645185859,3.2078,2486.2,2485.7,0.80432]
[1751645186058,0.6922,2486.5,2485.4,2.01105]
[1751645186059,3.2078,2486.5,2486.4,0.80409]
[1751645186256,4.30430986,2486.5,2486.0,3.2078]
[1751645186462,0.80419,2486.1,2485.6,3.2078]
[1751645186757,0.80419,2486.1,2485.6,1.3208]
[1751645186758,0.80432,2485.7,2485.6,1.3208]
[1751645186960,3.2078,2485.9,2485.3,3.2078]
[1751645187166,0.80439,2485.5,2485.4,0.8044]
[1751645187564,3.2078,2485.8,2485.6,0.80435]
[1751645187565,0.80434,2485.7,2485.6,0.80435]
[1751645187765,1.3694,2485.7,2485.1,1.3208]
[1751645187960,0.80443,2485.4,2485.3,0.80443]
[1751645188269,3.2078,2485.5,2485.0,3.2078]
[1751645188462,0.80448,2485.3,2485.0,3.2078]
[1751645188657,0.80448,2485.3,2485.1,0.80452]
[1751645188967,3.2078,2485.5,2485.4,0.80442]
[1751645189361,0.80439,2485.5,2485.4,0.80442]
[1751645189563,13.002,2485.7,2485.6,0.80435]
[1751645190064,0.8043,2485.8,2485.7,0.8043]
[1751645190264,3.2078,2486.4,2485.9,2.01062]
[1751645190468,0.80398,2486.8,2486.1,3.2078]
[1751645190662,5.21749,2487.1,2487.0,0.8039]
[1751645190663,2.34680516,2487.1,2487.0,0.8039]
[1751645190865,2.34680516,2487.3,2487.2,0.80384]
[1751645191158,6.90690516,2488.2,2487.1,3.2078]
[1751645191362,0.80368,2487.7,2487.6,3.2078]
[1751645191559,3.2078,2488.2,2487.6,0.80369]
[1751645191758,3.2078,2488.2,2487.5,0.80372]
[1751645191967,0.80368,2487.7,2487.6,1.3766]
[1751645192166,2.00895,2488.0,2487.4,0.80375]
[1751645192364,1.3388,2488.1,2487.2,3.2078]
[1751645192571,0.80364,2487.8,2487.5,0.80372]
[1751645192865,3.2078,2488.2,2487.7,0.80366]
[1751645193058,13.002,2488.3,2487.4,0.80376]
[1751645193059,3.2078,2487.9,2487.4,0.80376]
[1751645193259,0.80369,2487.7,2487.5,0.80372]
[1751645193463,0.80362,2487.9,2487.7,0.80367]
[1751645193660,4.5466,2488.6,2488.2,0.80349]
[1751645193873,0.80341,2488.6,2488.4,0.80344]
[1751645194068,0.80336,2488.7,2488.4,0.80344]
[1751645194268,0.80334,2488.8,2488.4,3.2078]
[1751645194566,4.01111,2488.9,2488.5,1.3766]
[1751645194869,3.91110746,2490.5,2488.7,4.01113]
[1751645194870,5.21545,2489.7,2488.7,4.01113]
[1751645195069,40.8,2489.6,2489.0,3.2078]
[1751645195371,0.80326,2489.0,2488.8,1.3673]
[1751645195574,0.80329,2488.9,2488.8,1.3673]
[1751645195771,0.80327,2489.0,2488.8,1.3673]
[1751645196064,3.2078,2489.4,2488.8,1.3673]
[1751645196268,0.80321,2489.2,2488.9,0.80327]
[1751645196475,0.80322,2489.1,2489.0,1.3673]
[1751645197275,5.21532,2489.8,2489.0,4.5751]
[1751645197568,0.80319,2489.3,2489.0,5.37833]
[1751645197871,0.80322,2489.1,2489.0,4.5751]
[1751645199371,0.80322,2489.1,2489.0,3.2078]
[1751645200069,3.2078,2489.5,2489.0,8.2078]
[1751645200271,2.00742,2489.9,2489.1,2.1495]
[1751645200469,0.80319,2489.2,2489.1,1.3463]
[1751645200868,0.80322,2489.1,2489.0,3.2078]
[1751645202572,0.8032,2489.2,2489.0,8.2078]
[1751645202769,0.80308,2489.6,2489.1,1.3611]
[1751645203074,0.80305,2489.7,2489.5,0.80308]
[1751645203272,0.80305,2489.7,2489.6,1.3611]
[1751645203672,0.80302,2489.8,2489.6,2.16415]
[1751645203966,0.80296,2490.0,2489.9,0.80297]
[1751645204175,0.80295,2490.0,2489.9,0.80294]
[1751645204371,16.1638,2490.5,2490.1,0.80288]
[1751645204573,2.00702,2490.4,2490.0,1.3153]
[1751645204875,0.80285,2490.3,2490.1,0.80287]
[1751645205075,0.80285,2490.3,2490.2,1.3153]
[1751645205277,3.2078,2490.9,2490.2,1.3153]
[1751645205469,3.2078,2491.3,2491.0,0.80259]
[1751645205670,3.2078,2491.9,2490.8,3.322]
[1751645205970,0.80239,2491.7,2491.6,3.2078]
[1751645206168,2.00573,2492.0,2491.3,3.2078]
[1751645206368,4.01028,2491.5,2491.4,1.3153]
[1751645206573,6.51636,2492.1,2491.4,1.3153]
[1751645206772,0.80245,2491.5,2491.4,1.3153]
[1751645206977,6.51636,2492.1,2491.2,3.2078]
[1751645206978,3.2078,2491.8,2491.2,3.2078]
[1751645207173,3.2078,2492.1,2491.1,3.2078]
[1751645207475,0.80243,2491.6,2491.1,16.1608]
[1751645207780,0.80234,2491.9,2491.5,3.2078]
[1751645207974,0.80234,2491.9,2491.6,4.5958]
[1751645208171,0.80235,2491.8,2491.7,1.388]
[1751645208380,3.2078,2492.1,2491.6,3.2078]
[1751645208776,3.2078,2492.1,2491.7,1.388]
[1751645209073,0.80231,2492.0,2491.7,1.388]
[1751645209272,0.80235,2491.9,2491.7,1.388]
[1751645209473,3.2078,2492.1,2491.7,2.19037]
[1751645209780,3.2078,2492.1,2491.7,1.388]
[1751645209983,0.80235,2491.8,2491.7,1.388]
[1751645210184,0.80232,2491.9,2491.7,2.19038]
[1751645210485,0.80234,2491.9,2491.7,1.388]
[1751645210773,3.2078,2492.1,2491.7,1.388]
[1751645210978,3.33316,2492.4,2491.7,1.388]
[1751645211180,3.2078,2492.7,2491.7,1.388]
[1751645211574,0.80223,2492.2,2491.8,0.52508643]
[1751645211775,3.2078,2492.7,2491.9,5.08088643]
[1751645212081,3.2078,2492.7,2492.2,3.2078]
[1751645212275,7.29447,2493.0,2492.5,0.80212]
[1751645212476,0.80207,2492.7,2492.5,0.80213]
[1751645212982,2.00505,2492.9,2492.3,1.348]
[1751645213181,0.80212,2492.6,2492.4,0.80214]
[1751645213679,5.21277,2493.0,2492.3,1.348]
[1751645213680,3.2078,2493.0,2492.3,1.348]
[1751645213885,3.2078,2493.6,2492.5,3.2078]
[1751645214080,1.3166,2493.5,2492.6,2.53015853]
[1751645214279,5.21228,2493.6,2492.7,3.94166853]
[1751645214475,2.00453,2493.5,2492.9,0.80197]
[1751645214676,0.80195,2493.1,2492.9,0.80197]
[1751645214878,1.3166,2493.5,2493.1,0.80191]
[1751645215076,1.3166,2493.5,2493.2,0.8019]
[1751645215280,0.655,2493.8,2493.4,0.80183]
[1751645215484,5.21169,2494.3,2493.6,0.80177]
[1751645215690,0.8017,2493.9,2493.3,2.00468]
[1751645215885,0.8017,2493.9,2493.7,0.80172]
[1751645216179,2.00405,2494.1,2493.2,1.4116]
[1751645216379,0.80178,2493.6,2493.4,2.18762]
[1751645216584,2.00421,2493.9,2493.1,3.2078]
[1751645216883,0.80188,2493.3,2493.2,0.54048318]
[1751645217884,3.2078,2493.8,2493.3,0.80185]
[1751645218084,1.4346,2493.9,2493.1,3.2078]
[1751645218286,0.80191,2493.2,2493.1,3.2078]
[1751645218581,0.80189,2493.3,2493.1,4.00974]
[1751645218785,0.80191,2493.2,2493.1,3.2078]
[1751645218988,0.80199,2493.0,2492.8,5.39561]
[1751645219178,6.64693,2493.5,2492.8,4.5936]
[1751645219381,4.6424,2493.5,2493.1,0.80194]
[1751645219581,0.802,2492.9,2492.8,3.2078]
[1751645220079,0.80214,2492.5,2492.4,3.2078]
[1751645220277,5.2131,2492.6,2492.0,3.2078]
[1751645220485,12.937,2492.8,2492.0,3.2078]
[1751645220679,0.80205,2492.8,2492.6,0.80208]
[1751645220885,0.80201,2492.9,2492.7,0.80204]
[1751645221078,3.2078,2493.3,2492.5,2.00533]
[1751645221284,4.5648,2494.0,2493.1,2.00485]
[1751645221583,5.36647,2494.0,2493.7,0.80171]
[1751645221788,4.5648,2494.0,2493.2,1.3123]
[1751645221982,3.2078,2493.6,2492.5,2.0053]
[1751645222184,0.80191,2493.2,2492.7,2.00513]
[1751645222385,1.3273,2493.5,2492.7,2.00513]
[1751645222586,3.2078,2493.6,2493.5,0.80181]
[1751645223588,4.00959,2493.6,2493.4,0.80183]
[1751645223787,3.2078,2493.6,2493.1,1.3847]
[1751645223991,0.80184,2493.4,2493.1,1.3847]
[1751645224284,3.2078,2494.3,2493.2,3.2078]
[1751645224486,3.2078,2494.6,2494.5,0.80149]
[1751645224893,0.80141,2494.8,2494.5,0.80149]
[1751645225088,3.2078,2494.6,2493.5,5.21228]
[1751645225395,2.00364,2494.7,2494.1,0.80161]
[1751645225396,0.80152,2494.4,2494.1,0.80161]
[1751645225582,0.80152,2494.4,2493.6,2.00445]
[1751645225583,0.80162,2494.1,2493.5,3.2078]
[1751645225785,3.2078,2493.8,2493.2,3.2078]
[1751645225984,3.2078,2493.8,2493.3,1.2985]
[1751645226184,0.80177,2493.7,2493.4,0.80183]
[1751645226387,3.2078,2493.5,2493.0,1.2985]
[1751645226595,4.00974,2493.1,2492.9,0.80198]
[1751645226799,3.2078,2493.1,2492.8,0.80201]
[1751645226995,3.2078,2493.1,2492.7,0.80205]
[1751645227292,0.80205,2492.8,2492.5,3.2078]
[1751645227501,0.80199,2493.0,2492.5,3.2078]
[1751645227697,3.2078,2493.1,2492.5,3.2078]
[1751645227893,1.3391,2493.0,2492.5,3.2078]
[1751645228097,0.80208,2492.7,2492.5,0.80212]
[1751645228296,3.2078,2492.8,2492.2,12.931]
[1751645228491,3.2078,2492.8,2492.6,0.8021]
[1751645228492,4.00985,2492.8,2492.6,0.8021]
[1751645228798,3.2078,2492.8,2492.7,0.80207]
[1751645229597,3.2078,2492.8,2492.3,2.00548]
[1751645229598,3.2078,2493.2,2492.6,2.00525]
[1751645229799,3.2078,2493.2,2492.7,3.2078]
[1751645229989,3.2078,2493.2,2492.7,5.35095]
[1751645230195,0.80202,2492.9,2492.7,3.2078]
[1751645230393,0.80202,2492.9,2492.7,4.00986]
[1751645231099,0.80199,2493.0,2492.8,0.80203]
[1751645231502,0.80195,2493.1,2493.0,0.80197]
[1751645231797,3.2078,2493.2,2492.8,2.00509]
[1751645231993,3.2078,2493.2,2493.1,0.80194]
[1751645232499,0.80189,2493.3,2493.1,0.80194]
[1751645232701,0.80189,2493.3,2493.1,0.80192]
[1751645232998,4.5092,2493.5,2492.7,3.2078]
[1751645233197,0.80192,2493.2,2493.1,0.80193]
[1751645233598,0.80192,2493.2,2493.0,0.80195]
[1751645233802,0.80192,2493.2,2492.7,4.5736]
[1751645234000,0.80192,2493.2,2493.1,0.80194]
[1751645234507,4.5092,2493.5,2493.3,0.80186]
[1751645234508,5.31103,2493.5,2493.3,0.80186]
[1751645234806,4.5092,2493.5,2493.0,2.00486]
[1751645234999,5.31102,2493.5,2493.3,0.80185]
[1751645235400,0.80188,2493.3,2493.1,0.80191]
[1751645235598,4.5092,2493.5,2492.8,2.00509]
[1751645235799,0.80186,2493.4,2493.2,0.80189]
[1751645236000,2.23856,2493.4,2493.2,0.80189]
[1751645236298,2.23856,2493.4,2493.3,0.80187]
[1751645236299,1.4367,2493.4,2493.3,0.80187]
[1751645236502,3.2078,2493.8,2493.4,0.80184]
[1751645236806,3.2078,2494.1,2494.0,0.80165]
[1751645237704,3.2078,2494.1,2493.6,5.21221]
[1751645237907,3.2078,2494.1,2494.0,0.80165]
[1751645244606,3.2078,2494.1,2493.5,3.2078]